bitfinex-derivatives/quotes_ETHF0:USTF0_20241008
["timestamp","ask_amount","ask_price","bid_price","bid_amount"]
[1728383477080,0.81381,2432.8,2432.7,0.41112]
[1728383477669,0.4027,2432.8,2432.7,0.41112]
[1728383478278,0.4027,2432.8,2432.7,0.81412]
[1728383478475,1.48,2432.9,2432.8,0.41111]
[1728383478878,1.89109,2432.9,2432.8,0.41111]
[1728383479985,1.48,2432.9,2432.8,0.41111]
[1728383481281,2.29598,2433.0,2432.9,0.41109]
[1728383481982,1.8849,2433.0,2432.9,0.41109]
[1728383482282,3.2078,2433.2,2433.1,0.41105]
[1728383482488,5.50164,2433.2,2433.1,0.41105]
[1728383482781,5.0906,2433.2,2433.1,0.41105]
[1728383482985,5.50164,2433.2,2433.1,0.41105]
[1728383491996,3.6106,2433.2,2433.1,0.41105]
[1728383492891,4.02164,2433.2,2433.1,0.41105]
[1728383494106,3.6106,2433.2,2433.1,0.41105]
[1728383495990,5.0906,2433.2,2433.1,0.41105]
[1728383496600,1.8828,2433.2,2433.1,0.41105]
[1728383498009,1.8828,2433.2,2432.8,1.02775]
[1728383498207,0.4028,2433.2,2433.1,0.41105]
[1728383498510,1.8828,2433.2,2433.1,0.41105]
[1728383505406,0.4028,2433.2,2433.1,0.41105]
[1728383506007,0.81384,2433.2,2433.1,0.41105]
[1728383506203,2.29384,2433.2,2433.1,0.41105]
[1728383508100,1.8828,2433.2,2433.1,0.41105]
[1728383508505,2.29384,2433.2,2433.1,0.41105]
[1728383508709,1.8828,2433.2,2433.1,0.41105]
[1728383509803,2.29384,2433.2,2433.1,0.41105]
[1728383510999,0.41106,2433.1,2433.0,0.41105]
[1728383511209,1.89106,2433.1,2433.0,0.41105]
[1728383512106,1.89105,2433.1,2433.0,0.41105]
[1728383514106,1.48,2433.1,2432.7,1.0278]
[1728383514307,1.48,2432.8,2432.7,0.41112]
[1728383514712,1.8886,2432.8,2432.7,0.41112]
[1728383515210,2.29971,2432.8,2432.7,0.41112]
[1728383517915,1.8886,2432.8,2432.7,0.41112]
[1728383518122,2.29971,2432.8,2432.7,0.41112]
[1728383518711,1.8886,2432.8,2432.7,0.41112]
[1728383520912,0.4086,2432.8,2432.7,0.41112]
[1728383522816,3.2078,2433.3,2432.9,0.41109]
[1728383523112,2.3085,2433.2,2433.1,0.41105]
[1728383523313,0.4111,2433.2,2433.1,0.41105]
[1728383523509,0.4111,2433.2,2433.1,0.83235]
[1728383523912,1.8911,2433.2,2433.1,0.83235]
[1728383525120,1.44484,2433.6,2433.1,0.4213]
[1728383525421,1.26371,2433.5,2433.4,0.41099]
[1728383525817,5.37331,2433.5,2433.4,0.41099]
[1728383526322,0.41102,2433.4,2433.3,0.41102]
[1728383526523,1.89102,2433.4,2433.3,0.41102]
[1728383526716,0.41103,2433.3,2433.2,0.41103]
[1728383528926,0.41106,2433.2,2433.1,0.41105]
[1728383529128,2.70366,2433.2,2433.1,0.41105]
[1728383532324,2.2926,2433.2,2433.1,0.41105]
[1728383532634,2.70364,2433.2,2433.1,0.41105]
[1728383534230,2.2926,2433.2,2433.1,0.41105]
[1728383535422,2.70364,2433.2,2433.1,0.41105]
[1728383535824,2.2926,2433.2,2433.1,0.41105]
[1728383536536,2.70364,2433.2,2433.1,0.41105]
[1728383536729,2.2926,2433.2,2433.1,0.41105]
[1728383537035,2.70364,2433.2,2433.1,0.41105]
[1728383538229,2.2926,2433.2,2433.1,0.41105]
[1728383538432,1.48,2433.3,2433.0,3.2078]
[1728383538632,3.6341,2433.5,2433.3,0.41102]
[1728383538633,0.4204,2433.4,2433.3,0.41102]
[1728383538840,3.6341,2433.5,2433.4,0.411]
[1728383539045,3.2078,2433.5,2433.4,0.411]
[1728383539340,0.83134,2433.8,2433.6,0.41097]
[1728383539341,1.48,2433.7,2433.6,0.41097]
[1728383542544,1.9004,2433.8,2433.7,0.41095]
[1728383542744,3.73920799,2434.1,2433.6,4.0494]
[1728383542954,4.15009799,2434.1,2434.0,0.4109]
[1728383543156,5.21920799,2434.1,2434.0,0.4109]
[1728383543649,5.63009799,2434.1,2434.0,0.4109]
[1728383545748,9.32720799,2434.1,2433.6,3.2078]
[1728383545945,1.48,2433.7,2433.6,0.41097]
[1728383547056,2.6888,2433.8,2433.7,0.41095]
[1728383548251,3.09974,2433.8,2433.7,0.41095]
[1728383559566,0.41096,2433.7,2433.6,0.41096]
[1728383559763,1.89096,2433.7,2433.6,0.41096]
[1728383563761,0.41098,2433.6,2433.5,0.41098]
[1728383563967,2.50744,2433.6,2433.3,0.41102]
[1728383564170,1.891,2433.4,2433.3,0.41102]
[1728383564659,1.891,2433.4,2433.0,4.23548]
[1728383564660,0.41103,2433.3,2433.2,0.41103]
[1728383564860,1.89103,2433.3,2433.2,0.41103]
[1728383565060,1.48,2433.3,2433.2,0.41103]
[1728383567365,1.89102,2433.3,2433.2,0.41103]
[1728383568069,1.48,2433.3,2433.2,0.41103]
[1728383574574,1.89102,2433.3,2433.2,0.41103]
[1728383576980,0.41105,2433.2,2433.1,0.41104]
[1728383577272,0.41108,2433.0,2432.9,0.41109]
[1728383577481,0.4111,2432.9,2432.8,0.4111]
[1728383577679,0.839,2432.9,2432.8,0.4111]
[1728383577879,1.2488,2432.9,2432.8,0.4111]
[1728383579282,0.8377,2432.9,2432.8,0.4111]
[1728383579481,2.3262,2433.2,2433.1,0.41105]
[1728383580286,1.48,2433.3,2433.0,0.3893]
[1728383580471,1.48,2433.3,2433.2,0.41104]
[1728383580677,1.89102,2433.3,2433.2,0.41104]
[1728383581378,1.48,2433.3,2433.2,0.41104]
[1728383581583,1.89102,2433.3,2433.2,0.41104]
[1728383582187,0.41104,2433.2,2433.1,0.41104]
[1728383582487,2.70664,2433.2,2433.1,0.41104]
[1728383583078,2.2956,2433.2,2432.7,3.2078]
[1728383583278,1.48,2432.8,2432.7,0.41112]
[1728383583581,1.89111,2432.8,2432.7,0.41112]
[1728383583771,2.68261,2432.8,2432.7,0.41112]
[1728383586386,4.41261,2432.8,2432.7,0.41112]
[1728383593189,4.82031,2432.8,2432.7,0.41112]
[1728383595288,4.4092,2432.8,2432.4,2.26703]
[1728383595492,0.41114,2432.7,2432.6,0.41112]
[1728383595687,4.4092,2432.8,2432.4,2.26703]
[1728383595991,1.02767,2433.1,2433.0,0.41105]
[1728383595992,0.41106,2433.1,2433.0,0.41105]
[1728383596200,3.62105,2433.2,2433.1,0.41105]
[1728383596589,1.2355,2433.3,2432.9,1.83532]
[1728383596790,1.64654,2433.3,2433.2,0.41104]
[1728383597993,0.41105,2433.2,2433.1,0.41104]
[1728383602793,2.26306,2433.3,2433.2,0.41104]
[1728383602794,1.64653,2433.3,2433.2,0.41104]
[1728383604190,1.2355,2433.3,2433.2,0.41104]
[1728383604902,0.4044,2433.3,2433.2,0.41104]
[1728383606006,0.41101,2433.4,2433.3,0.411]
[1728383608515,1.48,2433.4,2433.3,0.41102]
[1728383608913,1.891,2433.4,2433.3,0.41102]
[1728383609615,1.48,2433.4,2433.3,0.41102]
[1728383609824,0.419,2433.6,2433.3,7.3174]
[1728383610013,0.419,2433.6,2433.5,0.41099]
[1728383610409,0.82997,2433.6,2433.5,0.41099]
[1728383613517,0.411,2433.5,2433.4,0.411]
[1728383613721,1.891,2433.5,2433.4,0.411]
[1728383615719,0.411,2433.4,2433.3,3.61881]
[1728383615922,0.411,2433.4,2433.3,0.41102]
[1728383615923,1.2277,2433.4,2433.3,0.41102]
[1728383616118,0.41104,2433.3,2433.0,3.2078]
[1728383616418,1.89105,2433.1,2433.0,3.2078]
[1728383616626,1.89105,2433.1,2432.8,0.41109]
[1728383616627,1.48,2433.1,2432.8,0.41109]
[1728383616815,1.89109,2432.9,2432.8,0.41109]
[1728383617217,1.48,2432.9,2432.8,0.41109]
[1728383618722,1.89109,2432.9,2432.8,0.41109]
[1728383622427,0.8213,2433.0,2432.6,5.43705]
[1728383622428,2.71238,2433.0,2432.9,0.41109]
[1728383623419,2.3013,2433.0,2432.9,0.41109]
[1728383623621,0.8213,2433.0,2432.9,0.41109]
[1728383623820,1.23237,2433.0,2432.9,0.41109]
[1728383627834,2.71237,2433.0,2432.9,0.41109]
[1728383629527,2.3013,2433.0,2432.6,5.43705]
[1728383629729,1.8911,2432.9,2432.8,0.41109]
[1728383631337,1.48,2432.9,2432.8,0.41109]
[1728383631536,1.8981,2433.0,2432.9,0.41109]
[1728383631732,0.4181,2433.0,2432.9,3.61889]
[1728383631933,0.82917,2433.0,2432.9,3.61889]
[1728383632147,0.4181,2433.0,2432.9,3.61889]
[1728383634133,0.4181,2433.0,2432.9,0.41109]
[1728383634941,1.8981,2433.0,2432.9,0.41109]
[1728383637640,2.30917,2433.0,2432.9,0.41109]
[1728383640935,1.8981,2433.0,2432.9,0.41109]
[1728383641142,2.30917,2433.0,2432.9,0.41109]
[1728383641337,1.8981,2433.0,2432.9,0.41109]
[1728383641539,2.30917,2433.0,2432.9,0.41109]
[1728383645537,2.30917,2433.0,2432.8,3.2078]
[1728383645538,1.8981,2433.0,2432.8,3.2078]
[1728383645846,1.48,2432.9,2432.5,3.2078]
[1728383646038,1.89113,2432.7,2432.6,0.41112]
[1728383646239,0.41114,2432.6,2432.5,3.61894]
[1728383646440,0.83294,2432.6,2432.5,3.61894]
[1728383646736,0.83294,2432.6,2432.5,3.2078]
[1728383646939,0.41118,2432.4,2432.3,0.41118]
[1728383647134,1.02794,2432.4,2431.9,3.2078]
[1728383647336,4.65747,2432.6,2432.0,0.41123]
[1728383647337,1.48,2432.1,2432.0,0.41123]
[1728383647546,1.89122,2432.1,2432.0,0.41123]
[1728383656341,1.48,2432.1,2431.8,3.2078]
[1728383656547,0.41125,2432.0,2431.9,0.41125]
[1728383657059,0.4113,2431.7,2431.6,0.41129]
[1728383657248,0.41133,2431.6,2431.5,0.41132]
[1728383657452,2.31673,2431.6,2431.5,0.41132]
[1728383657953,0.4254,2431.6,2431.5,0.41132]
[1728383658250,1.48,2431.8,2431.7,0.41129]
[1728383658450,1.8652,2431.8,2431.7,0.41129]
[1728383659046,2.27647,2431.8,2431.7,0.41129]
[1728383659551,1.8652,2431.8,2431.7,0.41129]
[1728383660154,2.27647,2431.8,2431.7,0.41129]
[1728383662763,0.4113,2431.7,2431.6,0.4113]
[1728383662953,1.8913,2431.7,2431.6,0.4113]
[1728383663154,1.8913,2431.7,2431.3,4.64519]
[1728383663155,0.41131,2431.6,2431.5,0.41131]
[1728383663654,1.48,2431.7,2431.3,4.64519]
[1728383663862,1.8913,2431.7,2431.6,0.41131]
[1728383664160,0.41132,2431.6,2431.5,0.41131]
[1728383666561,0.41132,2431.6,2431.3,3.6168]
[1728383666762,1.48,2431.4,2431.3,4.02816]
[1728383667358,1.89134,2431.4,2431.3,0.41136]
[1728383667664,1.02841,2431.3,2430.8,4.2364]
[1728383667864,1.48,2430.9,2430.8,3.61924]
[1728383668472,1.89143,2430.9,2430.8,3.61924]
[1728383669255,1.48,2430.9,2430.8,3.61924]
[1728383670462,1.48,2430.9,2430.6,0.41147]
[1728383670662,0.41148,2430.7,2430.6,0.41147]
[1728383670962,1.48,2430.8,2430.3,1.8383]
[1728383670963,0.4115,2430.6,2430.5,0.41149]
[1728383671160,2.2818,2430.6,2430.5,0.41149]
[1728383671464,2.696,2430.6,2430.5,0.41149]
[1728383671660,2.2845,2430.6,2430.3,0.8095]
[1728383671865,0.4115,2430.5,2430.4,0.41149]
[1728383673861,0.8045,2430.6,2430.2,4.23666]
[1728383674070,1.48,2430.3,2430.2,3.61935]
[1728383674273,1.89153,2430.3,2430.2,3.61935]
[1728383674460,1.89153,2430.3,2430.2,3.2078]
[1728383675866,0.41155,2430.2,2429.9,0.41158]
[1728383676166,0.41158,2430.0,2429.9,0.41158]
[1728383676373,1.8806,2430.1,2429.9,0.41158]
[1728383676567,2.3031,2430.1,2429.9,0.41158]
[1728383676869,2.71468,2430.1,2429.7,0.4105]
[1728383677060,1.23468,2430.1,2430.0,0.41158]
[1728383677260,1.23468,2430.1,2429.9,0.41158]
[1728383677561,0.41159,2430.0,2429.9,0.41159]
[1728383677756,0.41158,2430.0,2429.9,0.41159]
[1728383677962,1.23468,2430.1,2429.7,1.44071]
[1728383678269,1.48,2429.8,2429.7,0.41163]
[1728383678466,3.21,2430.0,2429.6,4.62942]
[1728383678772,3.21,2430.0,2429.9,0.4116]
[1728383678959,3.21,2430.0,2429.6,3.2078]
[1728383679164,0.41161,2429.8,2429.7,0.41161]
[1728383679361,3.21,2429.8,2429.4,0.8219]
[1728383679565,3.21,2429.8,2429.6,0.41164]
[1728383679566,0.4159,2429.7,2429.6,0.41164]
[1728383679769,0.82753,2429.7,2429.6,0.41164]
[1728383680263,0.41166,2429.6,2429.5,0.41166]
[1728383680464,4.04746,2429.6,2429.5,0.41166]
[1728383680660,0.41167,2429.5,2429.4,0.41166]
[1728383680872,3.62167,2429.5,2429.4,0.41166]
[1728383681068,7.73767,2429.5,2429.4,0.41166]
[1728383681571,3.21,2429.5,2429.4,0.41168]
[1728383682162,3.62166,2429.5,2429.2,3.2078]
[1728383682366,3.62166,2429.5,2429.4,0.41168]
[1728383683158,3.21,2429.5,2429.4,0.41168]
[1728383683366,3.62166,2429.5,2429.4,0.41168]
[1728383683767,3.21,2429.5,2429.4,0.41168]
[1728383683971,3.62166,2429.5,2429.4,0.41168]
[1728383684269,3.21,2429.5,2429.4,0.41168]
[1728383685771,3.21,2429.6,2429.2,4.23709]
[1728383685978,3.21,2429.6,2429.5,3.61946]
[1728383686176,3.21,2429.8,2429.7,0.41163]
[1728383687265,3.21,2429.8,2429.7,0.82893]
[1728383688675,4.031,2430.0,2429.9,0.4116]
[1728383689073,3.21,2430.0,2429.9,0.4116]
[1728383690866,1.2451,2430.3,2429.9,0.4116]
[1728383691070,3.21,2430.3,2430.2,0.41155]
[1728383699791,3.6322,2430.3,2430.2,0.41155]
[1728383702993,4.04373,2430.3,2430.2,0.41155]
[1728383703284,3.6322,2430.3,2430.2,0.41155]
[1728383704188,4.04373,2430.3,2430.2,0.41155]
[1728383704389,2.31373,2430.3,2430.2,0.41155]
[1728383705689,1.9022,2430.3,2430.2,0.41155]
[1728383711392,0.4028,2430.6,2430.1,3.2078]
[1728383711595,1.24068,2430.6,2430.5,0.41149]
[1728383711791,0.8292,2430.6,2430.5,0.41149]
[1728383711998,1.24068,2430.6,2430.5,0.41149]
[1728383712496,0.8292,2430.6,2430.5,0.41149]
[1728383712702,2.3092,2430.6,2430.5,0.41149]
[1728383716199,2.3092,2430.6,2430.5,3.61929]
[1728383716502,1.48,2430.6,2430.5,3.61929]
[1728383719111,1.51489541,2431.2,2430.5,3.61929]
[1728383719112,0.41138,2431.2,2431.1,0.41138]
[1728383719400,0.7827,2431.1,2431.0,0.4114]
[1728383719599,2.2627,2431.1,2431.0,0.4114]
[1728383722106,1.8654,2431.1,2431.0,0.4114]
[1728383722599,1.48,2431.1,2431.0,0.4114]
[1728383725801,0.4174,2431.5,2431.4,0.41134]
[1728383726004,1.8974,2431.5,2431.4,0.41134]
[1728383732710,2.30873,2431.5,2431.4,0.41134]
[1728383733008,1.8974,2431.5,2431.4,0.41134]
[1728383735111,2.30873,2431.5,2431.4,0.41134]
[1728383735506,6.42153,2431.5,2431.4,0.41134]
[1728383738908,6.0102,2431.5,2431.4,0.41134]
[1728383739213,6.42153,2431.5,2431.4,0.41134]
[1728383739409,6.0102,2431.5,2431.4,0.41134]
[1728383739911,6.42153,2431.5,2431.4,0.41134]
[1728383740109,6.0102,2431.5,2431.1,1.02846]
[1728383740310,0.82878,2431.5,2431.4,0.41138]
[1728383740512,4.94158,2431.5,2431.4,0.41138]
[1728383742815,6.0102,2431.5,2430.9,4.0344]
[1728383743116,1.48,2431.0,2430.9,0.41147]
[1728383743619,2.6877,2431.0,2430.9,0.41147]
[1728383746511,6.8013,2431.0,2430.4,1.81495]
[1728383746714,1.48,2430.5,2430.4,0.80915]
[1728383747013,1.48,2430.5,2430.4,0.41155]
[1728383747214,1.89154,2430.5,2430.4,0.41155]
[1728383747413,6.8474,2430.5,2430.4,0.41155]
[1728383748411,8.5774,2430.5,2430.4,0.41155]
[1728383752319,8.98894,2430.5,2430.4,0.41155]
[1728383753019,8.5774,2430.5,2430.4,0.41155]
[1728383753322,11.7852,2430.5,2430.4,0.41155]
[1728383753713,4.463,2430.5,2430.4,0.41155]
[1728383754018,6.4178,2430.5,2430.4,0.41155]
[1728383754221,3.21,2430.5,2430.4,0.41155]
[1728383754517,3.21,2430.6,2430.5,0.41154]
[1728383756821,6.4178,2430.6,2430.5,0.41154]
[1728383757121,6.8129,2430.6,2430.5,0.41154]
[1728383758428,7.22442,2430.6,2430.5,0.41154]
[1728383759021,6.8129,2430.6,2430.5,0.41154]
[1728383759335,3.6029,2430.6,2430.5,0.41154]
[1728383759523,3.21,2430.6,2430.5,0.41154]
[1728383769025,3.62152,2430.6,2430.5,0.41154]
[1728383769221,3.21,2430.6,2430.5,0.41154]
[1728383769421,0.41154,2430.5,2430.4,0.41154]
[1728383769728,3.21,2430.5,2430.1,0.4047]
[1728383769923,3.21,2430.2,2430.1,0.8163]
[1728383770419,1.48,2430.2,2430.0,4.23683]
[1728383770619,0.3969,2430.1,2430.0,3.61942]
[1728383771423,1.48,2430.2,2430.0,3.2078]
[1728383771626,1.48,2430.2,2430.1,0.8154]
[1728383771827,1.48,2430.3,2430.2,0.41159]
[1728383773631,1.48,2430.3,2430.2,0.83349]
[1728383779234,0.4132,2430.5,2430.4,0.41155]
[1728383779434,1.8932,2430.5,2430.4,0.41155]
[1728383779929,2.30474,2430.5,2430.4,0.41155]
[1728383780233,1.8932,2430.5,2430.4,0.41155]
[1728383780822,1.48,2430.5,2430.4,0.41155]
[1728383800741,1.89154,2430.5,2430.4,0.41155]
[1728383802646,1.48,2430.5,2430.4,0.41155]
[1728383806053,1.2217,2430.7,2430.6,0.41152]
[1728383806251,3.1132,2430.7,2430.6,0.41152]
[1728383806959,2.7017,2430.7,2430.6,0.41152]
[1728383807656,1.2217,2430.7,2430.6,0.41152]
[1728383807862,2.7017,2430.7,2430.6,0.41152]
[1728383813958,3.1132,2430.7,2430.6,0.41152]
[1728383814659,2.7017,2430.7,2430.6,0.41152]
[1728383815257,3.1132,2430.7,2430.6,0.41152]
[1728383815463,2.7017,2430.7,2430.6,0.41152]
[1728383816468,3.1132,2430.7,2430.6,0.41152]
[1728383818462,2.7017,2430.7,2430.6,0.41152]
[1728383820256,0.25315763,2431.0,2430.6,4.52592]
[1728383820456,1.2088,2431.0,2430.9,0.41147]
[1728383822065,4.4058,2431.4,2431.3,0.4114]
[1728383822263,5.8858,2431.4,2431.3,0.4114]
[1728383822455,0.80677,2431.5,2431.1,1.02858]
[1728383822456,3.6032,2431.5,2431.4,0.41138]
[1728383822657,15.628,2431.8,2431.2,1.02854]
[1728383822658,4.135,2431.8,2431.2,1.02854]
[1728383822861,4.94172,2431.8,2431.7,0.41133]
[1728383823062,8.14952,2431.8,2431.7,0.41133]
[1728383823262,8.57572,2431.8,2431.7,0.41133]
[1728383823467,8.1644,2431.8,2431.7,0.41133]
[1728383823662,8.5541,2431.8,2431.7,0.41133]
[1728383824067,8.96542,2431.8,2431.7,0.41133]
[1728383824665,10.44542,2431.8,2431.7,0.41133]
[1728383825665,6.31042,2431.8,2431.7,0.41133]
[1728383826775,5.8991,2431.8,2431.7,0.41133]
[1728383827567,5.5094,2431.8,2431.7,0.41133]
[1728383827766,2.3016,2431.8,2431.7,0.41133]
[1728383827962,1.48,2431.8,2431.7,0.41133]
[1728383833371,2.4473,2432.1,2431.5,0.3987]
[1728383833570,1.2493,2432.1,2432.0,0.41128]
[1728383833972,5.3613,2432.1,2432.0,0.41128]
[1728383834578,2.7293,2432.1,2432.0,0.41128]
[1728383834977,3.14057,2432.1,2432.0,0.41128]
[1728383835984,2.7293,2432.1,2432.0,0.41128]
[1728383836584,3.14057,2432.1,2432.0,0.41128]
[1728383837380,7.86948,2432.1,2431.5,1.42709]
[1728383837683,1.48,2431.6,2431.5,0.81007]
[1728383837871,1.48,2431.6,2431.5,4.92287]
[1728383840780,2.6851,2431.7,2431.5,4.5115]
[1728383840982,2.6851,2431.7,2431.6,0.41135]
[1728383843183,1.9051,2431.7,2431.6,0.41135]
[1728383843487,1.48,2431.7,2431.6,0.79835]
[1728383845584,1.48,2431.8,2431.7,0.41133]
[1728383846284,1.48,2431.8,2431.7,0.80143]
[1728383847488,1.48,2431.8,2431.7,0.41133]
[1728383849088,3.2078,2431.9,2431.8,0.41132]
[1728383850580,5.0991,2431.9,2431.8,0.41132]
[1728383851185,4.6878,2431.9,2431.8,0.41132]
[1728383851387,5.0991,2431.9,2431.8,0.41132]
[1728383851796,1.8913,2431.9,2431.8,0.41132]
[1728383854395,1.48,2431.9,2431.8,0.41132]
[1728383854697,1.8913,2431.9,2431.8,0.41132]
[1728383854886,1.48,2431.9,2431.8,0.41132]
[1728383856294,1.8943,2432.0,2431.9,0.4113]
[1728383856493,2.30558,2432.0,2431.9,0.4113]
[1728383856686,1.8943,2432.0,2431.9,0.4113]
[1728383860798,0.8189,2432.1,2432.0,0.41128]
[1728383861090,3.2078,2432.2,2431.8,2.91037]
[1728383861298,3.2078,2432.2,2432.1,0.41127]
[1728383861693,1.48,2432.3,2432.0,0.8074]
[1728383861899,1.48,2432.3,2432.2,0.41125]
[1728383865899,1.2373,2432.4,2432.3,0.41123]
[1728383868101,1.64851,2432.4,2432.3,0.41123]
[1728383868795,1.48,2432.6,2432.5,0.41118]
[1728383868992,2.2791,2432.6,2432.5,0.41118]
[1728383869202,0.7991,2432.6,2432.5,0.41118]
[1728383870201,1.2049,2432.6,2432.5,0.41118]
[1728383870504,2.6849,2432.6,2432.5,0.41118]
[1728383870798,3.09608,2432.6,2432.5,0.41118]
[1728383873210,3.09608,2432.6,2432.5,0.4112]
[1728383873505,0.41121,2432.5,2432.4,0.4112]
[1728383873707,1.89121,2432.5,2432.4,0.4112]
[1728383876504,6.00241,2432.5,2432.1,1.02816]
[1728383876709,1.48,2432.2,2431.7,0.4058]
[1728383876904,1.2222,2432.1,2432.0,0.41128]
[1728383877296,1.2222,2432.1,2431.9,1.02823]
[1728383877502,1.2222,2432.1,2432.0,0.41128]
[1728383877995,1.63347,2432.1,2432.0,0.41128]
[1728383880409,1.2222,2432.1,2432.0,0.41128]
[1728383882007,1.63347,2432.1,2432.0,0.41128]
[1728383882207,1.2222,2432.1,2432.0,0.41128]
[1728383882404,1.63347,2432.1,2432.0,0.41128]
[1728383883110,1.2222,2432.1,2432.0,0.41128]
[1728383884012,3.11347,2432.1,2432.0,0.41128]
[1728383886510,0.41132,2431.9,2431.8,0.4113]
[1728383886715,0.41134,2431.8,2431.7,0.41132]
[1728383886909,1.89134,2431.8,2431.7,0.41132]
[1728383892609,0.41135,2431.7,2431.6,0.41134]
[1728383892916,1.67095,2431.7,2431.6,0.41134]
[1728383893810,1.2596,2431.7,2431.3,1.02847]
[1728383894007,0.41141,2431.4,2431.1,3.2078]
[1728383894208,0.41141,2431.4,2431.2,0.41141]
[1728383894209,1.63212,2431.3,2431.2,0.41141]
[1728383894408,6.31992,2431.3,2431.2,0.41141]
[1728383894614,3.11212,2431.3,2431.2,0.41141]
[1728383897208,2.7007,2431.3,2431.2,0.41141]
[1728383897414,3.1121,2431.3,2431.2,0.41141]
[1728383900621,4.6878,2431.4,2431.0,1.44373]
[1728383900923,4.6878,2431.4,2431.3,0.4114]
[1728383901824,1.48,2431.4,2431.3,0.4114]
[1728383903421,0.4262,2431.5,2431.4,0.41138]
[1728383903718,3.6261,2431.8,2431.4,1.48]
[1728383903921,0.81514,2431.7,2431.6,0.41133]
[1728383904115,2.70044,2431.7,2431.6,0.41133]
[1728383904513,2.70044,2431.7,2431.4,2.50847]
[1728383904514,4.03743,2431.8,2431.7,0.41133]
[1728383904716,5.51743,2431.8,2431.7,0.41133]
[1728383905225,0.41133,2431.7,2431.6,0.82573]
[1728383907627,5.1061,2431.8,2431.6,0.4144]
[1728383907925,5.51742,2431.8,2431.7,0.41133]
[1728383911633,5.1061,2431.8,2431.7,0.41133]
[1728383911828,0.8091,2432.0,2431.7,4.52333]
[1728383912035,14.6708,2432.5,2431.9,1.8913]
[1728383912240,14.6708,2432.5,2432.0,0.8186]
[1728383912241,1.48,2432.3,2432.0,0.8186]
[1728383912539,0.41124,2432.3,2432.2,0.41124]
[1728383912933,1.22842,2432.4,2432.3,0.41123]
[1728383912934,1.22841,2432.4,2432.3,0.41123]
[1728383913134,0.82684,2432.3,2432.2,0.41124]
[1728383914130,4.03464,2432.3,2432.2,0.41124]
[1728383914334,1.8956,2432.3,2432.2,0.41124]
[1728383914635,2.30683,2432.3,2432.2,0.41124]
[1728383917237,5.51463,2432.3,2432.2,0.41124]
[1728383917439,0.41126,2432.2,2432.1,0.41126]
[1728383917636,0.41125,2432.2,2432.1,0.41127]
[1728383918440,0.41127,2432.1,2432.0,1.22987]
[1728383918747,1.48,2432.2,2432.1,0.41127]
[1728383918748,1.89126,2432.2,2432.1,0.41127]
[1728383920941,0.41127,2432.1,2432.0,0.80757]
[1728383921740,1.48,2432.2,2432.0,0.3963]
[1728383921944,1.89127,2432.2,2432.1,0.41127]
[1728383926456,1.8956,2432.3,2432.0,0.3963]
[1728383926650,0.4156,2432.3,2432.2,0.41125]
[1728383926948,1.8912,2432.5,2432.4,0.41121]
[1728383927141,1.48,2432.5,2432.4,0.41121]
[1728383927350,1.8912,2432.5,2432.4,0.41121]
[1728383927548,0.41121,2432.4,2432.3,0.81062]
[1728383927748,0.41121,2432.4,2432.3,0.41122]
[1728383927749,2.30861,2432.4,2432.3,0.41122]
[1728383928448,1.8974,2432.4,2432.0,0.7951]
[1728383928651,1.19555,2432.3,2432.2,0.41124]
[1728383930355,0.7843,2432.3,2432.2,0.41124]
[1728383930547,2.30863,2432.4,2432.3,0.41123]
[1728383936661,2.30863,2432.4,2432.2,0.41123]
[1728383936662,0.41125,2432.3,2432.2,0.41123]
[1728383936865,1.89125,2432.3,2432.2,0.41123]
[1728383937664,1.89125,2432.3,2432.0,1.81921]
[1728383937665,4.6878,2432.3,2432.0,0.3994]
[1728383937852,0.80057,2432.2,2432.1,0.41125]
[1728383948269,1.02826,2431.9,2431.4,3.2078]
[1728383948462,1.48,2431.5,2431.4,0.83708]
[1728383948660,1.48,2431.5,2431.4,1.22628]
[1728383949265,2.69094,2431.7,2431.6,0.41135]
[1728383949665,0.41137,2431.6,2431.5,0.41136]
[1728383949875,1.89137,2431.6,2431.5,0.41136]
[1728383952568,5.4874,2431.7,2431.4,0.4257]
[1728383952763,0.3887,2431.7,2431.6,0.41135]
[1728383952963,1.174,2432.1,2432.0,0.41128]
[1728383952964,1.58528,2432.1,2432.0,0.41128]
[1728383953173,1.174,2432.1,2432.0,0.41128]
[1728383953873,1.21365,2432.2,2432.1,0.41127]
[1728383955468,0.8024,2432.2,2432.1,0.41127]
[1728383955665,1.21365,2432.2,2432.1,0.41127]
[1728383956168,0.41132,2431.9,2431.7,3.2078]
[1728383956373,0.41132,2431.9,2431.8,0.41131]
[1728383956673,1.89132,2431.9,2431.8,0.41131]
[1728383958368,0.41132,2431.9,2431.8,0.41131]
[1728383965776,0.41129,2432.0,2431.9,0.41128]
[1728383966085,0.41129,2432.0,2431.7,1.02832]
[1728383966086,0.41127,2432.1,2432.0,0.41127]
[1728383966480,8.80346,2432.2,2432.1,0.41127]
[1728383967679,5.59566,2432.2,2432.1,0.41127]
[1728383968378,0.41128,2432.1,2432.0,0.41127]
[1728383969979,8.3922,2432.2,2431.7,0.3861]
[1728383970185,8.80346,2432.2,2432.1,0.41127]